[Event "*** SCC Grand Prix: Titled Tuesday Blitz"]
[Site "Chess.com"]
[Date "2020.08.25"]
[Round "1"]
[White "esrosenberg"]
[Black "sergeikim"]
[Result "1-0"]
[WhiteElo "2191"]
[BlackElo "2499"]
[TimeControl "180+1"]
[EndTime "10:02:19 PDT"]
[Termination "esrosenberg won by resignation"]

1. Nf3 {[%clk 0:03:00.9]} 1... Nf6 {[%clk 0:02:59.3]} 2. c4 {[%clk 0:03:00.8]}
2... g6 {[%clk 0:02:59.5]} 3. Nc3 {[%clk 0:03:00.7]} 3... Bg7 {[%clk 0:02:59.9]}
4. e4 {[%clk 0:02:51.4]} 4... d6 {[%clk 0:03:00.8]} 5. d4 {[%clk 0:02:51.4]}
5... O-O {[%clk 0:03:00.5]} 6. h3 {[%clk 0:02:51.9]} 6... e5 {[%clk 0:03:00.4]}
7. dxe5 {[%clk 0:02:51.8]} 7... dxe5 {[%clk 0:02:59.8]} 8. Qxd8 {[%clk
0:02:52.7]} 8... Rxd8 {[%clk 0:02:59.7]} 9. Bg5 {[%clk 0:02:53.4]} 9... c6
{[%clk 0:02:59.1]} 10. Nxe5 {[%clk 0:02:53.2]} 10... Re8 {[%clk 0:02:58.6]} 11.
O-O-O {[%clk 0:02:53.4]} 11... Na6 {[%clk 0:02:57.1]} 12. Nf3 {[%clk 0:02:51.3]}
12... h6 {[%clk 0:02:49.1]} 13. Be3 {[%clk 0:02:44.4]} 13... Nxe4 {[%clk
0:02:39.3]} 14. Nxe4 {[%clk 0:02:43.9]} 14... Rxe4 {[%clk 0:02:40.2]} 15. Rd8+
{[%clk 0:02:44.2]} 15... Kh7 {[%clk 0:02:30.7]} 16. h4 {[%clk 0:02:42.8]} 16...
Nc7 {[%clk 0:02:27.9]} 17. Ng5+ {[%clk 0:02:39.4]} 17... hxg5 {[%clk 0:02:23.9]}
18. hxg5+ {[%clk 0:02:39.4]} 18... Bh6 {[%clk 0:02:24.2]} 19. Rxh6+ {[%clk
0:02:35.7]} 19... Kg7 {[%clk 0:02:24.1]} 20. Rdh8 {[%clk 0:02:25.1]} 1-0

[Event "*** SCC Grand Prix: Titled Tuesday Blitz"]
[Site "Chess.com"]
[Date "2020.08.25"]
[Round "1"]
[White "killer311"]
[Black "JRenatoMaranhao"]
[Result "1-0"]
[WhiteElo "2484"]
[BlackElo "2054"]
[TimeControl "180+1"]
[EndTime "10:02:44 PDT"]
[Termination "killer311 won by resignation"]

1. d4 {[%clk 0:02:55.8]} 1... c6 {[%clk 0:02:43.1]} 2. c4 {[%clk 0:02:53.7]}
2... d5 {[%clk 0:02:42.7]} 3. e3 {[%clk 0:02:54.1]} 3... Nf6 {[%clk 0:02:39.5]}
4. Nf3 {[%clk 0:02:54.7]} 4... Bf5 {[%clk 0:02:36.8]} 5. cxd5 {[%clk 0:02:53.8]}
5... Nxd5 {[%clk 0:02:15.3]} 6. Nc3 {[%clk 0:02:52.1]} 6... Nxc3 {[%clk
0:02:10.6]} 7. bxc3 {[%clk 0:02:53]} 7... e6 {[%clk 0:02:09.3]} 8. Bd3 {[%clk
0:02:52]} 8... Bxd3 {[%clk 0:02:08.7]} 9. Qxd3 {[%clk 0:02:52.9]} 9... Bd6
{[%clk 0:02:03.6]} 10. O-O {[%clk 0:02:52.3]} 10... O-O {[%clk 0:02:03.5]} 11.
e4 {[%clk 0:02:47.3]} 11... e5 {[%clk 0:01:54.1]} 12. dxe5 {[%clk 0:02:31.2]}
12... Bc5 {[%clk 0:01:51.9]} 13. Qc4 {[%clk 0:02:23.3]} 13... Qe7 {[%clk
0:01:42]} 14. Bg5 {[%clk 0:02:21.4]} 1-0

[Event "*** SCC Grand Prix: Titled Tuesday Blitz"]
[Site "Chess.com"]
[Date "2020.08.25"]
[Round "1"]
[White "Gerodot71"]
[Black "exoticprincess"]
[Result "0-1"]
[WhiteElo "2432"]
[BlackElo "2891"]
[TimeControl "180+1"]
[EndTime "10:03:03 PDT"]
[Termination "exoticprincess won by resignation"]

1. d4 {[%clk 0:03:00.9]} 1... d5 {[%clk 0:02:59.4]} 2. c4 {[%clk 0:03:01.1]}
2... c6 {[%clk 0:02:59.6]} 3. Nf3 {[%clk 0:03:00.7]} 3... Nf6 {[%clk 0:02:59.4]}
4. Nc3 {[%clk 0:03:00.7]} 4... dxc4 {[%clk 0:02:59.6]} 5. a4 {[%clk 0:03:00.5]}
5... Bf5 {[%clk 0:02:59.6]} 6. Ne5 {[%clk 0:02:59.7]} 6... Na6 {[%clk 0:03:00]}
7. f3 {[%clk 0:02:53.9]} 7... Nd7 {[%clk 0:02:59.8]} 8. Nxc4 {[%clk 0:02:51.2]}
8... e5 {[%clk 0:02:59.7]} 9. dxe5 {[%clk 0:02:37.6]} 9... Qh4+ {[%clk 0:02:51]}
10. g3 {[%clk 0:02:34.1]} 10... Qxc4 {[%clk 0:02:50.8]} 11. e4 {[%clk
0:02:34.2]} 11... Qe6 {[%clk 0:02:50.6]} 12. exf5 {[%clk 0:02:33.6]} 12... Qxe5+
{[%clk 0:02:50.8]} 13. Kf2 {[%clk 0:02:32.3]} 13... O-O-O {[%clk 0:02:46.9]} 14.
Bxa6 {[%clk 0:02:15.1]} 14... bxa6 {[%clk 0:02:47.8]} 15. Bf4 {[%clk 0:02:14.6]}
15... Qxf5 {[%clk 0:02:47.1]} 16. Qb3 {[%clk 0:02:12.5]} 16... g5 {[%clk
0:02:36.3]} 17. Be3 {[%clk 0:01:41.7]} 17... Ne5 {[%clk 0:02:35.5]} 18. f4
{[%clk 0:01:32.9]} 18... Ng4+ {[%clk 0:02:34.3]} 19. Kf3 {[%clk 0:01:28.4]}
19... Nxe3 {[%clk 0:02:34.5]} 20. Kxe3 {[%clk 0:01:25.2]} 20... Bc5+ {[%clk
0:02:34.5]} 21. Ke2 {[%clk 0:01:25.3]} 21... Rhe8+ {[%clk 0:02:33.8]} 0-1

[Event "*** SCC Grand Prix: Titled Tuesday Blitz"]
[Site "Chess.com"]
[Date "2020.08.25"]
[Round "1"]
[White "INDIAN-ELEPHANT"]
[Black "VinzentSpitzl"]
[Result "1/2-1/2"]
[WhiteElo "2686"]
[BlackElo "2372"]
[TimeControl "180+1"]
[EndTime "10:03:10 PDT"]
[Termination "Game drawn by repetition"]

1. d4 {[%clk 0:02:57.6]} 1... d5 {[%clk 0:02:57.3]} 2. Nf3 {[%clk 0:02:56.7]}
2... Nf6 {[%clk 0:02:55.9]} 3. c4 {[%clk 0:02:56.6]} 3... e6 {[%clk 0:02:56.1]}
4. g3 {[%clk 0:02:56.5]} 4... Bb4+ {[%clk 0:02:55.9]} 5. Bd2 {[%clk 0:02:56.4]}
5... Be7 {[%clk 0:02:56.2]} 6. Bg2 {[%clk 0:02:55.9]} 6... O-O {[%clk
0:02:56.2]} 7. O-O {[%clk 0:02:55.9]} 7... Nbd7 {[%clk 0:02:53.4]} 8. Qc2 {[%clk
0:02:55.7]} 8... Ne4 {[%clk 0:02:53.4]} 9. Nc3 {[%clk 0:02:55.3]} 9... Nxd2
{[%clk 0:02:52.3]} 10. Nxd2 {[%clk 0:02:55.1]} 10... c6 {[%clk 0:02:52.8]} 11.
e3 {[%clk 0:02:55.2]} 11... b6 {[%clk 0:02:45.4]} 12. Rac1 {[%clk 0:02:53.1]}
12... Bb7 {[%clk 0:02:45.5]} 13. Rfd1 {[%clk 0:02:52.8]} 13... Rc8 {[%clk
0:02:42.3]} 14. a3 {[%clk 0:02:52.7]} 14... Qc7 {[%clk 0:02:41.7]} 15. b4 {[%clk
0:02:52.4]} 15... Rfd8 {[%clk 0:02:32.2]} 16. Qb2 {[%clk 0:02:41]} 16... Qb8
{[%clk 0:02:31.3]} 17. a4 {[%clk 0:02:38.9]} 17... Nf6 {[%clk 0:02:26]} 18. b5
{[%clk 0:02:37.1]} 18... c5 {[%clk 0:02:23.5]} 19. dxc5 {[%clk 0:02:34.9]} 19...
Rxc5 {[%clk 0:02:17.8]} 20. cxd5 {[%clk 0:02:34.4]} 20... Nxd5 {[%clk
0:02:16.7]} 21. Nxd5 {[%clk 0:02:31.5]} 21... Bxd5 {[%clk 0:02:08.9]} 22. Rxc5
{[%clk 0:02:30.1]} 22... Bxc5 {[%clk 0:02:08.6]} 23. Nb3 {[%clk 0:02:23.5]}
23... Bxg2 {[%clk 0:01:58.6]} 24. Rxd8+ {[%clk 0:02:22.9]} 24... Qxd8 {[%clk
0:01:59.1]} 25. Kxg2 {[%clk 0:02:23.5]} 25... Qd5+ {[%clk 0:01:58.9]} 26. Kg1
{[%clk 0:02:23.4]} 26... Qd1+ {[%clk 0:01:58.3]} 27. Kg2 {[%clk 0:02:23.4]}
27... Qd5+ {[%clk 0:01:58.4]} 28. Kg1 {[%clk 0:02:13]} 28... Qd1+ {[%clk
0:01:58.4]} 29. Kg2 {[%clk 0:02:13.1]} 29... Qd5+ {[%clk 0:01:58.5]} 1/2-1/2

[Event "*** SCC Grand Prix: Titled Tuesday Blitz"]
[Site "Chess.com"]
[Date "2020.08.25"]
[Round "1"]
[White "SGchess01"]
[Black "hectorfiori"]
[Result "1-0"]
[WhiteElo "2746"]
[BlackElo "2390"]
[TimeControl "180+1"]
[EndTime "10:03:21 PDT"]
[Termination "SGchess01 won by resignation"]

1. d4 {[%clk 0:02:59.9]} 1... Nf6 {[%clk 0:02:58.8]} 2. c4 {[%clk 0:03:00]} 2...
g6 {[%clk 0:02:59.3]} 3. Nc3 {[%clk 0:03:00.3]} 3... Bg7 {[%clk 0:02:59.7]} 4.
e4 {[%clk 0:03:00.4]} 4... d6 {[%clk 0:03:00.4]} 5. f3 {[%clk 0:03:00.6]} 5...
O-O {[%clk 0:03:00.5]} 6. Be3 {[%clk 0:03:00.5]} 6... c5 {[%clk 0:02:59.4]} 7.
Nge2 {[%clk 0:03:00.8]} 7... cxd4 {[%clk 0:02:52.1]} 8. Nxd4 {[%clk 0:03:01.7]}
8... Nc6 {[%clk 0:02:51.8]} 9. Be2 {[%clk 0:03:01.9]} 9... Bd7 {[%clk
0:02:47.9]} 10. O-O {[%clk 0:02:59.5]} 10... Qa5 {[%clk 0:02:45.2]} 11. Qd2
{[%clk 0:02:55.5]} 11... a6 {[%clk 0:02:44]} 12. Nb3 {[%clk 0:02:40.7]} 12...
Qc7 {[%clk 0:02:38.8]} 13. Rac1 {[%clk 0:02:39.1]} 13... Rfc8 {[%clk 0:02:36.9]}
14. Nd5 {[%clk 0:02:38.2]} 14... Qd8 {[%clk 0:01:53.5]} 15. Nb6 {[%clk
0:02:37.5]} 15... Rab8 {[%clk 0:01:52.4]} 16. Nxc8 {[%clk 0:02:37.3]} 16... Rxc8
{[%clk 0:01:53.3]} 17. Rfd1 {[%clk 0:02:37.7]} 17... Be6 {[%clk 0:01:51.3]} 18.
c5 {[%clk 0:02:35.7]} 18... Bxb3 {[%clk 0:01:45.6]} 19. axb3 {[%clk 0:02:36.6]}
19... Ne5 {[%clk 0:01:33.4]} 20. cxd6 {[%clk 0:02:35.5]} 20... Rxc1 {[%clk
0:01:34.3]} 21. Rxc1 {[%clk 0:02:34]} 21... exd6 {[%clk 0:01:30.1]} 22. Rd1
{[%clk 0:02:33]} 22... Ne8 {[%clk 0:01:21.3]} 23. f4 {[%clk 0:02:32.7]} 1-0

[Event "*** SCC Grand Prix: Titled Tuesday Blitz"]
[Site "Chess.com"]
[Date "2020.08.25"]
[Round "1"]
[White "rasmussvane"]
[Black "Aradej"]
[Result "1-0"]
[WhiteElo "2862"]
[BlackElo "2426"]
[TimeControl "180+1"]
[EndTime "10:03:26 PDT"]
[Termination "rasmussvane won by resignation"]

1. Nf3 {[%clk 0:03:00.9]} 1... Nf6 {[%clk 0:02:59.2]} 2. g3 {[%clk 0:02:59.1]}
2... d5 {[%clk 0:02:57.5]} 3. Bg2 {[%clk 0:02:58.8]} 3... e6 {[%clk 0:02:57.8]}
4. O-O {[%clk 0:02:59.1]} 4... Be7 {[%clk 0:02:58.2]} 5. c4 {[%clk 0:02:59.6]}
5... O-O {[%clk 0:02:58.3]} 6. b3 {[%clk 0:03:00]} 6... c5 {[%clk 0:02:56]} 7.
cxd5 {[%clk 0:02:58.8]} 7... Nxd5 {[%clk 0:02:55.6]} 8. Nc3 {[%clk 0:02:59]}
8... Nxc3 {[%clk 0:02:53.8]} 9. dxc3 {[%clk 0:02:59.9]} 9... Qxd1 {[%clk
0:02:51.2]} 10. Rxd1 {[%clk 0:03:00.8]} 10... Nc6 {[%clk 0:02:51.5]} 11. Be3
{[%clk 0:02:55.1]} 11... a5 {[%clk 0:02:40.3]} 12. a4 {[%clk 0:02:44.6]} 12...
Ra6 {[%clk 0:02:38.3]} 13. Nd2 {[%clk 0:02:42.8]} 13... Bf6 {[%clk 0:02:33.3]}
14. Ne4 {[%clk 0:02:31.2]} 14... Be7 {[%clk 0:02:21.3]} 15. Nxc5 {[%clk
0:02:29.5]} 15... Ra8 {[%clk 0:02:14.6]} 16. Nd7 {[%clk 0:02:29.4]} 16... Bxd7
{[%clk 0:02:09.9]} 17. Rxd7 {[%clk 0:02:30.3]} 17... Bf6 {[%clk 0:02:09.2]} 18.
Rxb7 {[%clk 0:02:14.2]} 18... Rac8 {[%clk 0:02:08.9]} 19. Rc1 {[%clk 0:02:00.6]}
19... Rfd8 {[%clk 0:02:03.7]} 20. Rb5 {[%clk 0:01:56.8]} 20... h6 {[%clk
0:02:00.9]} 21. Bxc6 {[%clk 0:01:52]} 21... Rxc6 {[%clk 0:02:00.8]} 22. Rxa5
{[%clk 0:01:52.6]} 22... Rxc3 {[%clk 0:01:58.8]} 23. Rxc3 {[%clk 0:01:51.6]}
23... Bxc3 {[%clk 0:01:59]} 24. Rc5 {[%clk 0:01:51.4]} 24... Rd1+ {[%clk
0:01:56.6]} 25. Kg2 {[%clk 0:01:51.4]} 25... Be1 {[%clk 0:01:53.9]} 26. Rc1
{[%clk 0:01:49.4]} 1-0

[Event "*** SCC Grand Prix: Titled Tuesday Blitz"]
[Site "Chess.com"]
[Date "2020.08.25"]
[Round "1"]
[White "Jungle_Jaguar"]
[Black "VladimirBugayev"]
[Result "1-0"]
[WhiteElo "2646"]
[BlackElo "2308"]
[TimeControl "180+1"]
[EndTime "10:03:34 PDT"]
[Termination "Jungle_Jaguar won by resignation"]

1. e4 {[%clk 0:02:59.7]} 1... c6 {[%clk 0:02:59.6]} 2. d4 {[%clk 0:02:55]} 2...
d5 {[%clk 0:02:58.8]} 3. e5 {[%clk 0:02:55.3]} 3... Bf5 {[%clk 0:02:58.1]} 4. h4
{[%clk 0:02:55.7]} 4... h5 {[%clk 0:02:53.3]} 5. c4 {[%clk 0:02:55.3]} 5... e6
{[%clk 0:02:49.8]} 6. Nc3 {[%clk 0:02:55.4]} 6... Bb4 {[%clk 0:02:48.9]} 7. Qb3
{[%clk 0:02:50.3]} 7... Bxc3+ {[%clk 0:02:40.4]} 8. bxc3 {[%clk 0:02:49.7]} 8...
dxc4 {[%clk 0:02:25.6]} 9. Qxb7 {[%clk 0:02:48.1]} 9... Nd7 {[%clk 0:02:24.9]}
10. Bg5 {[%clk 0:02:41.3]} 10... f6 {[%clk 0:02:19.4]} 11. exf6 {[%clk
0:02:39.3]} 11... gxf6 {[%clk 0:02:18.8]} 12. Bf4 {[%clk 0:02:39.6]} 12... e5
{[%clk 0:02:03.5]} 13. dxe5 {[%clk 0:02:34.9]} 13... Ne7 {[%clk 0:02:03.8]} 14.
Bxc4 {[%clk 0:02:10.9]} 14... Rb8 {[%clk 0:01:59]} 15. Qa6 {[%clk 0:02:10.4]}
15... Nc5 {[%clk 0:01:41.2]} 16. Qxa7 {[%clk 0:01:51.8]} 16... Rb7 {[%clk
0:01:39.4]} 17. Qxc5 {[%clk 0:01:50.9]} 1-0

[Event "*** SCC Grand Prix: Titled Tuesday Blitz"]
[Site "Chess.com"]
[Date "2020.08.25"]
[Round "1"]
[White "MuradNuri"]
[Black "enriquebutti"]
[Result "1-0"]
[WhiteElo "2455"]
[BlackElo "1800"]
[TimeControl "180+1"]
[EndTime "10:03:55 PDT"]
[Termination "MuradNuri won by resignation"]

1. e4 {[%clk 0:03:00.5]} 1... c5 {[%clk 0:02:59.5]} 2. Nf3 {[%clk 0:03:00]} 2...
d6 {[%clk 0:02:58.8]} 3. d4 {[%clk 0:02:59.4]} 3... cxd4 {[%clk 0:02:58.6]} 4.
Bb5+ {[%clk 0:02:59]} 4... Nd7 {[%clk 0:02:56.6]} 5. Qxd4 {[%clk 0:02:58.3]}
5... e5 {[%clk 0:02:55.1]} 6. Qd3 {[%clk 0:02:56.3]} 6... a6 {[%clk 0:02:54.3]}
7. Bxd7+ {[%clk 0:02:56]} 7... Bxd7 {[%clk 0:02:53]} 8. O-O {[%clk 0:02:56.3]}
8... Bc6 {[%clk 0:02:52.4]} 9. Rd1 {[%clk 0:02:53.2]} 9... Be7 {[%clk
0:02:51.1]} 10. b3 {[%clk 0:02:51.6]} 10... Nf6 {[%clk 0:02:50.2]} 11. Nbd2
{[%clk 0:02:50.9]} 11... Qc7 {[%clk 0:02:48.2]} 12. c4 {[%clk 0:02:50.2]} 12...
O-O {[%clk 0:02:46]} 13. Nh4 {[%clk 0:02:50.4]} 13... g6 {[%clk 0:02:45]} 14.
Nhf3 {[%clk 0:02:47.2]} 14... b5 {[%clk 0:02:37.9]} 15. Bb2 {[%clk 0:02:46.9]}
15... Qb7 {[%clk 0:02:33.4]} 16. Re1 {[%clk 0:02:45.7]} 16... Rfd8 {[%clk
0:02:30.9]} 17. Rac1 {[%clk 0:02:31.9]} 17... bxc4 {[%clk 0:02:29.6]} 18. Qxc4
{[%clk 0:02:32.8]} 18... Rac8 {[%clk 0:02:23.8]} 19. Qe2 {[%clk 0:02:26.7]}
19... Nh5 {[%clk 0:02:18.2]} 20. Qe3 {[%clk 0:02:25.5]} 20... Nf4 {[%clk
0:02:15.3]} 21. Nc4 {[%clk 0:02:20.7]} 21... f6 {[%clk 0:02:03.9]} 22. g3 {[%clk
0:02:02.1]} 22... Ne6 {[%clk 0:01:56.6]} 23. Na5 {[%clk 0:01:59.6]} 23... Qa8
{[%clk 0:01:51.2]} 24. Nxc6 {[%clk 0:01:59.2]} 24... Rxc6 {[%clk 0:01:50.3]} 25.
Qd3 {[%clk 0:02:00]} 25... Nc5 {[%clk 0:01:46]} 26. Qd5+ {[%clk 0:01:58.2]}
26... Kg7 {[%clk 0:01:43.1]} 27. b4 {[%clk 0:01:58.2]} 27... Rb8 {[%clk
0:01:37.8]} 28. Ba3 {[%clk 0:01:56.1]} 1-0

[Event "*** SCC Grand Prix: Titled Tuesday Blitz"]
[Site "Chess.com"]
[Date "2020.08.25"]
[Round "1"]
[White "RusPakhom"]
[Black "azikom"]
[Result "0-1"]
[WhiteElo "2279"]
[BlackElo "2613"]
[TimeControl "180+1"]
[EndTime "10:04:06 PDT"]
[Termination "azikom won by resignation"]

1. e4 {[%clk 0:02:59.7]} 1... d5 {[%clk 0:02:58.9]} 2. exd5 {[%clk 0:02:59.3]}
2... Qxd5 {[%clk 0:02:58.8]} 3. Nc3 {[%clk 0:02:59]} 3... Qa5 {[%clk 0:02:59.2]}
4. d4 {[%clk 0:02:59]} 4... Nf6 {[%clk 0:02:58.8]} 5. Nf3 {[%clk 0:02:59.1]}
5... Bg4 {[%clk 0:02:58.2]} 6. Bc4 {[%clk 0:02:57.1]} 6... e6 {[%clk 0:02:56.4]}
7. h3 {[%clk 0:02:57.5]} 7... Bh5 {[%clk 0:02:55.4]} 8. g4 {[%clk 0:02:57.9]}
8... Bg6 {[%clk 0:02:55]} 9. Ne5 {[%clk 0:02:58]} 9... Nbd7 {[%clk 0:02:54.4]}
10. f4 {[%clk 0:02:56.9]} 10... c6 {[%clk 0:02:47.3]} 11. Bd2 {[%clk 0:02:56.6]}
11... Qb6 {[%clk 0:02:44.5]} 12. Ne2 {[%clk 0:02:19.1]} 12... Nxe5 {[%clk
0:02:35.5]} 13. dxe5 {[%clk 0:02:20]} 13... Nd5 {[%clk 0:02:30.9]} 14. Bxd5
{[%clk 0:02:03.7]} 14... cxd5 {[%clk 0:02:29.6]} 15. Bc3 {[%clk 0:02:04]} 15...
Be4 {[%clk 0:02:27.6]} 16. Rh2 {[%clk 0:01:53.3]} 16... Bc5 {[%clk 0:02:20.6]}
17. Nd4 {[%clk 0:01:27.4]} 17... h5 {[%clk 0:02:17.4]} 18. Qe2 {[%clk
0:00:55.1]} 18... Bxd4 {[%clk 0:02:08.8]} 0-1

[Event "*** SCC Grand Prix: Titled Tuesday Blitz"]
[Site "Chess.com"]
[Date "2020.08.25"]
[Round "1"]
[White "Evandro_Barbosa"]
[Black "pavelalexandru07"]
[Result "1-0"]
[WhiteElo "2550"]
[BlackElo "2217"]
[TimeControl "180+1"]
[EndTime "10:04:14 PDT"]
[Termination "Evandro_Barbosa won by resignation"]

1. e4 {[%clk 0:03:00.4]} 1... c5 {[%clk 0:02:59.6]} 2. Nf3 {[%clk 0:02:59.6]}
2... d6 {[%clk 0:02:58.5]} 3. d4 {[%clk 0:02:56.8]} 3... cxd4 {[%clk 0:02:59.4]}
4. Nxd4 {[%clk 0:02:56.3]} 4... Nf6 {[%clk 0:03:00]} 5. Nc3 {[%clk 0:02:56.2]}
5... a6 {[%clk 0:03:00.6]} 6. a4 {[%clk 0:02:55.8]} 6... e5 {[%clk 0:03:00.1]}
7. Nf3 {[%clk 0:02:54.7]} 7... Be7 {[%clk 0:02:59.4]} 8. Bc4 {[%clk 0:02:52.9]}
8... Be6 {[%clk 0:02:59.1]} 9. Qe2 {[%clk 0:02:52]} 9... Qc8 {[%clk 0:02:51.5]}
10. Bb3 {[%clk 0:02:48.9]} 10... O-O {[%clk 0:02:50.1]} 11. O-O {[%clk
0:02:46.8]} 11... Nc6 {[%clk 0:02:42.9]} 12. Rd1 {[%clk 0:02:43.6]} 12... Nb4
{[%clk 0:02:28.3]} 13. Bg5 {[%clk 0:02:39.4]} 13... h6 {[%clk 0:02:05.1]} 14.
Bxf6 {[%clk 0:02:37.4]} 14... Bxf6 {[%clk 0:02:06]} 15. Rxd6 {[%clk 0:02:33.4]}
15... Bxb3 {[%clk 0:02:04]} 16. cxb3 {[%clk 0:02:31.6]} 16... Qc5 {[%clk
0:02:02.3]} 17. Rad1 {[%clk 0:02:28.6]} 17... Rac8 {[%clk 0:02:00.9]} 18. Rxf6
{[%clk 0:02:10.8]} 18... gxf6 {[%clk 0:02:00.7]} 19. Nh4 {[%clk 0:02:11.2]}
19... Nc6 {[%clk 0:01:56.2]} 20. Nf5 {[%clk 0:02:08.6]} 20... Ne7 {[%clk
0:01:55.8]} 21. b4 {[%clk 0:01:34.9]} 1-0

[Event "*** SCC Grand Prix: Titled Tuesday Blitz"]
[Site "Chess.com"]
[Date "2020.08.25"]
[Round "1"]
[White "phoenix_sjh"]
[Black "Anton_Zhukov04"]
[Result "1-0"]
[WhiteElo "2539"]
[BlackElo "2209"]
[TimeControl "180+1"]
[EndTime "10:04:17 PDT"]
[Termination "phoenix_sjh won by resignation"]

1. d4 {[%clk 0:03:00.9]} 1... Nf6 {[%clk 0:02:59.3]} 2. c4 {[%clk 0:02:59.2]}
2... e6 {[%clk 0:02:59.4]} 3. Nc3 {[%clk 0:02:58]} 3... Bb4 {[%clk 0:02:59.8]}
4. Qc2 {[%clk 0:02:58.3]} 4... O-O {[%clk 0:02:57.8]} 5. Nf3 {[%clk 0:02:58.5]}
5... b6 {[%clk 0:02:52.8]} 6. e4 {[%clk 0:02:56.3]} 6... d5 {[%clk 0:02:45.5]}
7. e5 {[%clk 0:02:56.2]} 7... Ne4 {[%clk 0:02:45.6]} 8. Bd3 {[%clk 0:02:56]}
8... Bb7 {[%clk 0:02:44]} 9. O-O {[%clk 0:02:54.6]} 9... Nd7 {[%clk 0:02:42.8]}
10. Nxe4 {[%clk 0:02:52.6]} 10... dxe4 {[%clk 0:02:31.4]} 11. Bxe4 {[%clk
0:02:53.5]} 11... Bxe4 {[%clk 0:02:30.8]} 12. Qxe4 {[%clk 0:02:54.4]} 12... Be7
{[%clk 0:02:22.9]} 13. Be3 {[%clk 0:02:47.2]} 13... Qc8 {[%clk 0:02:21.3]} 14.
Rac1 {[%clk 0:02:42.1]} 14... Qa6 {[%clk 0:02:20.6]} 15. a3 {[%clk 0:02:42]}
15... Rfd8 {[%clk 0:02:09.8]} 16. Qc6 {[%clk 0:02:40.5]} 16... Rac8 {[%clk
0:02:03.7]} 17. Rfd1 {[%clk 0:02:35.4]} 17... Nb8 {[%clk 0:02:02.4]} 18. Qe4
{[%clk 0:02:32.2]} 18... Qa4 {[%clk 0:01:59]} 19. Bg5 {[%clk 0:02:24.4]} 19...
Bxg5 {[%clk 0:01:46.8]} 20. Nxg5 {[%clk 0:02:25.3]} 20... g6 {[%clk 0:01:47.5]}
21. Qh4 {[%clk 0:02:22.3]} 21... h5 {[%clk 0:01:43.5]} 22. g4 {[%clk 0:02:17.4]}
22... Kg7 {[%clk 0:01:24.4]} 23. Nxf7 {[%clk 0:02:06.5]} 23... Kxf7 {[%clk
0:01:12.5]} 24. Qf6+ {[%clk 0:02:05.3]} 24... Kg8 {[%clk 0:01:12.7]} 25. Qxg6+
{[%clk 0:02:04.7]} 25... Kh8 {[%clk 0:01:12.5]} 26. Qxh5+ {[%clk 0:02:04.3]}
26... Kg7 {[%clk 0:01:11.2]} 27. Qg5+ {[%clk 0:02:04.5]} 27... Kh7 {[%clk
0:01:11.2]} 28. Rd3 {[%clk 0:02:02.1]} 1-0

[Event "*** SCC Grand Prix: Titled Tuesday Blitz"]
[Site "Chess.com"]
[Date "2020.08.25"]
[Round "1"]
[White "ElGasanov"]
[Black "Superfelix"]
[Result "1-0"]
[WhiteElo "2765"]
[BlackElo "2399"]
[TimeControl "180+1"]
[EndTime "10:04:40 PDT"]
[Termination "ElGasanov won by resignation"]

1. d4 {[%clk 0:03:00.2]} 1... g6 {[%clk 0:02:58.1]} 2. e4 {[%clk 0:02:58.7]}
2... c6 {[%clk 0:02:57.7]} 3. c4 {[%clk 0:02:54.9]} 3... d5 {[%clk 0:02:58.2]}
4. Nc3 {[%clk 0:02:52.7]} 4... dxe4 {[%clk 0:02:55.5]} 5. Nxe4 {[%clk
0:02:53.6]} 5... Nf6 {[%clk 0:02:56]} 6. Nxf6+ {[%clk 0:02:51.4]} 6... exf6
{[%clk 0:02:56.9]} 7. Be2 {[%clk 0:02:49.1]} 7... Bg7 {[%clk 0:02:55.1]} 8. Nf3
{[%clk 0:02:48.6]} 8... O-O {[%clk 0:02:55.1]} 9. O-O {[%clk 0:02:49.1]} 9...
Bg4 {[%clk 0:02:52.9]} 10. h3 {[%clk 0:02:48.1]} 10... Bxf3 {[%clk 0:02:52.9]}
11. Bxf3 {[%clk 0:02:49]} 11... f5 {[%clk 0:02:53.3]} 12. d5 {[%clk 0:02:48.9]}
12... c5 {[%clk 0:02:47.7]} 13. Be3 {[%clk 0:02:44.2]} 13... b6 {[%clk
0:02:47.5]} 14. Qd2 {[%clk 0:02:42.2]} 14... Na6 {[%clk 0:02:45.1]} 15. Rfe1
{[%clk 0:02:38.5]} 15... Nc7 {[%clk 0:02:45]} 16. Bg5 {[%clk 0:02:33.7]} 16...
Bf6 {[%clk 0:02:40.6]} 17. Bxf6 {[%clk 0:02:12]} 17... Qxf6 {[%clk 0:02:41.5]}
18. d6 {[%clk 0:02:12.6]} 18... Rad8 {[%clk 0:02:38.5]} 19. Rad1 {[%clk
0:02:01.8]} 19... Ne6 {[%clk 0:02:38.4]} 20. Qd5 {[%clk 0:01:15.7]} 20... Nd4
{[%clk 0:02:35.3]} 21. d7 {[%clk 0:01:16.3]} 21... Kg7 {[%clk 0:02:20.9]} 22. b4
{[%clk 0:01:11.7]} 22... Nxf3+ {[%clk 0:02:15]} 23. Qxf3 {[%clk 0:01:12.6]}
23... cxb4 {[%clk 0:02:15.3]} 24. Qb7 {[%clk 0:01:07.5]} 24... a5 {[%clk
0:02:13.9]} 25. Qc7 {[%clk 0:01:08.1]} 25... a4 {[%clk 0:02:04.9]} 26. Rd6
{[%clk 0:01:06.1]} 26... Qc3 {[%clk 0:02:04.7]} 27. Red1 {[%clk 0:01:06.7]}
27... b3 {[%clk 0:02:03.9]} 28. axb3 {[%clk 0:01:06.6]} 28... a3 {[%clk
0:02:02.4]} 29. Qxb6 {[%clk 0:01:02]} 29... a2 {[%clk 0:02:00.4]} 30. Qd4+
{[%clk 0:01:01.1]} 30... Qxd4 {[%clk 0:02:00.1]} 31. R6xd4 {[%clk 0:01:02]}
31... Ra8 {[%clk 0:01:57.3]} 32. Ra1 {[%clk 0:01:02.6]} 32... Rfd8 {[%clk
0:01:57.3]} 33. Rd2 {[%clk 0:01:00.5]} 33... Ra7 {[%clk 0:01:56.2]} 34. Raxa2
{[%clk 0:00:59.5]} 34... Rdxd7 {[%clk 0:01:55.3]} 35. Rxd7 {[%clk 0:00:58.1]}
1-0